fUST/lending_fUST_20251216
["ID","MTS","AMOUNT","RATE_DAILY","PERIOD"]
[398546726,1765822671752,150.0,9.265e-05,2]
[398546727,1765822672136,150.0,9.927e-05,2]
[398546728,1765822676466,254.54889609,0.00010134,2]
[398546729,1765822676771,254.54889609,0.00010283,2]
[398546730,1765822677660,254.54889609,0.00010431,2]
[398546731,1765822678144,254.54889609,0.0001058,2]
[398546732,1765822682432,300.0,0.00010649,2]
[398546733,1765822684073,838.0,0.00010649,2]
[398546734,1765822701453,184.20873946,0.0001065,2]
[398546736,1765822743481,300.0,0.00010649,2]
[398546737,1765822802159,300.0,0.00010649,2]
[398546738,1765822804153,569.0,0.0001065,2]
[398546739,1765822813467,184.0,0.00010649,2]
[398546740,1765822816094,3128.0127821,0.00010581,2]
[398546741,1765822862381,300.0,0.00010649,2]
[398546742,1765822888680,211.84403212,0.00010649,2]
[398546743,1765822896136,500.0,0.00010649,2]
[398546744,1765822896216,447.3408803,0.00010649,2]
[398546745,1765822896239,52.6591197,0.00010649,2]
[398546746,1765822896397,300.0,0.00010649,2]
[398546747,1765822896455,500.0,0.00010649,2]
[398546748,1765822903881,208.688,0.00010633,2]
[398546749,1765822904354,279.04,0.0001,2]
[398546750,1765822922942,300.0,0.00010649,2]
[398546751,1765822944577,4711.99,0.0001,2]
[398546752,1765822982707,285.0,0.00010649,2]
[398546755,1765823064843,500.0,0.00010649,2]
[398546756,1765823064896,500.0,0.00010649,2]
[398546757,1765823064953,500.0,0.00010649,2]
[398546758,1765823065002,500.0,0.00010649,2]
[398546759,1765823065050,389.31467967,0.00010649,2]
[398546760,1765823085941,200.0,0.00010649,2]
[398546761,1765823102673,586.57560251,0.00010649,2]
[398546762,1765823103954,186.74259812,0.00010649,2]
[398546763,1765823103976,313.25740188,0.00010649,2]
[398546764,1765823104021,500.0,0.00010649,2]
[398546765,1765823104065,451.80494525,0.00010649,2]
[398546768,1765823152802,8734.94765287,0.0001055,2]
[398546769,1765823152828,10000.01,0.0001055,2]
[398546770,1765823152853,10000.01,0.0001055,2]
[398546771,1765823152879,10000.01,0.0001055,2]
[398546772,1765823152904,10000.01,0.0001055,2]
[398546773,1765823152929,10000.01,0.0001055,2]
[398546774,1765823152954,10000.01,0.0001055,2]
[398546775,1765823152979,10000.01,0.0001055,2]
[398546776,1765823153003,10000.01,0.0001055,2]
[398546777,1765823153031,10000.01,0.0001055,2]
[398546782,1765823204532,-3953.73926726,0.0001055,2]
[398546783,1765823204554,-10000.01,0.0001055,2]
[398546784,1765823204579,-10000.01,0.0001055,2]
[398546785,1765823204653,-10000.01,0.0001055,2]
[398546786,1765823204776,-10000.01,0.0001055,2]
[398546787,1765823227509,-10000.01,0.0001055,2]
[398546788,1765823227983,-10000.01,0.0001055,2]
[398546789,1765823228473,-10000.01,0.0001055,2]
[398546790,1765823245187,-780.42441088,0.0001055,2]
[398546791,1765823247419,-170.0,0.00011527,19]
[398546793,1765823299263,-300.0,0.00010549,2]
[398546794,1765823299290,-1200.0,0.00010549,2]
[398546795,1765823314426,-500.0,0.00010549,2]
[398546796,1765823314459,-500.0,0.00010549,2]
[398546797,1765823314493,-500.0,0.00010549,2]
[398546798,1765823314528,-500.0,0.00010549,2]
[398546799,1765823314568,-500.0,0.00010549,2]
[398546800,1765823314602,-244.98383298,0.00010549,2]
[398546801,1765823314635,-500.0,0.00010549,2]
[398546802,1765823314666,-500.0,0.00010549,2]
[398546803,1765823314697,-500.0,0.00010549,2]
[398546804,1765823314726,-500.0,0.00010549,2]
[398546805,1765823314757,-10.04233404,0.00010549,2]
[398546806,1765823315070,-489.95766596,0.00010549,2]
[398546807,1765823317414,-500.0,0.00010549,2]
[398546808,1765823317443,-500.0,0.00010549,2]
[398546809,1765823317474,-500.0,0.00010549,2]
[398546810,1765823317502,-500.0,0.00010549,2]
[398546811,1765823317531,-500.0,0.00010549,2]
[398546812,1765823317559,-500.0,0.00010549,2]
[398546813,1765823317590,-500.0,0.00010549,2]
[398546814,1765823317620,-500.0,0.00010549,2]
[398546815,1765823317650,-500.0,0.00010549,2]
[398546816,1765823317680,-500.0,0.00010549,2]
[398546818,1765823317864,-500.0,0.00010549,2]
[398546819,1765823317897,-500.0,0.00010549,2]
[398546820,1765823332262,205.60941441,0.00010549,2]
[398546822,1765823342849,300.0,0.00010549,2]
[398546823,1765823350736,150.0,0.00010523,2]
[398546824,1765823350992,201.34967585,0.00010523,2]
[398546826,1765823402622,300.0,0.00010549,2]
[398546827,1765823410365,1200.0,0.00010549,2]
[398546828,1765823422978,-568.0,0.0001055,2]
[398546866,1765823432421,-6353.6584235,0.0001055,2]
[398546872,1765823432470,-4977.92727348,0.0001055,2]
[398546875,1765823432482,-901.35642237,0.0001055,2]
[398546936,1765823438433,-17751.68387935,0.0001055,2]
[398546938,1765823438444,-75061.68457972,0.0001055,2]
[398547021,1765823440453,-21061.43156488,0.0001055,2]
[398547076,1765823443583,-470.31115789,0.0001055,2]
[398547077,1765823443594,-419.18467264,0.0001055,2]
[398547078,1765823443687,-641.35815235,0.0001055,2]
[398547079,1765823443699,-829.53625222,0.0001055,2]
[398547080,1765823443713,-1874.01888232,0.0001055,2]
[398547260,1765823446377,-5663.28912534,0.0001055,2]
[398547262,1765823446388,-697.71665078,0.0001055,2]
[398547333,1765823452117,205.83516581,0.0001031,2]
[398547334,1765823457383,1281.86,9.749e-05,2]
[398547335,1765823462304,300.0,0.00010549,2]
[398547336,1765823468622,4231.3510014,9.794e-05,2]
[398548562,1765823491673,1000.0,0.000105,2]
[398549605,1765823503827,256.88,0.00010339,2]
[398549606,1765823504910,150.77,0.0001,2]
[398549607,1765823505799,150.77,0.000102,2]
[398549635,1765823521949,186.13123096,0.00010465,2]
[398549636,1765823522423,300.0,0.00010549,2]
[398549637,1765823563519,150.0,7.38e-05,2]
[398549638,1765823568604,650.41260183,9.699e-05,2]
[398549639,1765823568626,3507.01778247,9.699e-05,2]
[398549641,1765823582595,300.0,0.00010549,2]
[398549642,1765823583536,1200.0,0.00010549,2]
[398549643,1765823605418,500.0,0.00010549,2]
[398549644,1765823605504,500.0,0.00010549,2]
[398549645,1765823605542,500.0,0.00010549,2]
[398549646,1765823605581,500.0,0.00010549,2]
[398549647,1765823605625,500.0,0.00010549,2]
[398549648,1765823605656,500.0,0.00010549,2]
[398549649,1765823605697,500.0,0.00010549,2]
[398549650,1765823605735,500.0,0.00010549,2]
[398549651,1765823605787,500.0,0.00010549,2]
[398549652,1765823605826,492.99221753,0.00010549,2]
[398549653,1765823605849,7.00778247,0.00010549,2]
[398549654,1765823605899,500.0,0.00010549,2]
[398549655,1765823605960,500.0,0.00010549,2]
[398549656,1765823606014,500.0,0.00010549,2]
[398549657,1765823606063,500.0,0.00010549,2]
[398549658,1765823606106,500.0,0.00010549,2]
[398549659,1765823606137,500.0,0.00010549,2]
[398549660,1765823606194,500.0,0.00010549,2]
[398549661,1765823606233,500.0,0.00010549,2]
[398549662,1765823606315,500.0,0.00010549,2]
[398549663,1765823606375,500.0,0.00010549,2]
[398549664,1765823606424,621.23779446,0.00010549,2]
[398549665,1765823606464,500.0,0.00010549,2]
[398549666,1765823627501,150.0,7.288e-05,2]
[398549667,1765823633225,500.0,0.00010549,2]
[398549668,1765823633263,500.0,0.00010549,2]
[398549669,1765823633330,500.0,0.00010549,2]
[398549670,1765823633361,500.0,0.00010549,2]
[398549671,1765823633395,500.0,0.00010549,2]
[398549672,1765823633512,576.16733406,0.00010549,2]
[398549673,1765823633541,500.0,0.00010549,2]
[398549674,1765823633579,145.59708901,0.00010549,2]
[398549675,1765823633602,354.40291099,0.00010549,2]
[398549676,1765823633678,500.0,0.00010549,2]
[398549677,1765823633716,500.0,0.00010549,2]
[398549678,1765823633754,500.0,0.00010549,2]
[398549679,1765823633792,500.0,0.00010549,2]
[398549680,1765823633879,500.0,0.00010549,2]
[398549681,1765823641590,231.72617983,0.00010549,2]
[398549682,1765823642985,300.0,0.00010549,2]
[398549683,1765823650749,500.0,0.00010549,2]
[398549684,1765823650801,533.0518731,0.00010549,2]
[398549685,1765823666942,500.0,0.00010549,2]
[398549686,1765823667038,500.0,0.00010549,2]
[398549687,1765823667131,395.88858297,0.00010549,2]
[398549688,1765823668232,474.90227899,0.00010549,2]
[398549689,1765823702527,300.0,0.00010549,2]
[398549690,1765823710467,1200.0,0.00010549,2]
[398549691,1765823711395,333.0,0.00010544,2]
[398549693,1765823714998,1877.03817412,0.00010544,2]
[398549694,1765823715024,797.56925615,0.00010544,2]
[398549695,1765823792038,1000.0,0.0001055,2]
[398549696,1765823793472,716.04307572,0.0001055,2]
[398549697,1765823804092,1538.1577758,9.656e-05,2]
[398549699,1765823851125,266.28030096,0.00010052,2]
[398549700,1765823851687,266.28030096,0.00010273,2]
[398549701,1765823852345,266.54658126,0.00010494,2]
[398549703,1765823883272,195.85,9.99e-05,2]
[398549704,1765823883881,627.0,0.00010549,2]
[398549705,1765824004592,568.0,0.0001055,2]
[398549708,1765824010311,571.0,0.00010549,2]
[398549709,1765824016506,2674.60743027,0.00010544,2]
[398549710,1765824103860,205.504,0.00010339,2]
[398549711,1765824183629,307.17127888,9.656e-05,2]
[398549712,1765824183650,186.59147352,9.656e-05,2]
[398549713,1765824183860,9813.41852648,0.0001045,2]
[398549714,1765824183884,10000.01,0.0001045,2]
[398549715,1765824183909,10000.01,0.0001045,2]
[398549716,1765824183935,10000.01,0.0001045,2]
[398549717,1765824183958,10000.01,0.0001045,2]
[398549718,1765824183982,10000.01,0.0001045,2]
[398549719,1765824184007,10000.01,0.0001045,2]
[398549720,1765824184033,10000.01,0.0001045,2]
[398549721,1765824184058,10000.01,0.0001045,2]
[398549723,1765824226558,-8781.60708901,0.0001045,2]
[398549724,1765824226572,-10000.01,0.0001045,2]
[398549725,1765824226730,-10000.01,0.0001045,2]
[398549726,1765824226759,-10000.01,0.0001045,2]
[398549727,1765824231760,-10000.01,0.0001045,2]
[398549728,1765824231806,-10000.01,0.0001045,2]
[398549729,1765824231914,-10000.01,0.0001045,2]
[398549730,1765824232053,-10000.01,0.0001045,2]
[398549731,1765824232223,-10000.01,0.0001045,2]
[398549732,1765824232354,-10000.01,0.0001045,2]
[398549733,1765824248265,-10000.01,0.0001045,2]
[398549734,1765824248402,-10000.01,0.0001045,2]
[398549735,1765824248600,-10000.01,0.0001045,2]
[398549736,1765824248745,-10000.01,0.0001045,2]
[398549737,1765824248882,-10000.01,0.0001045,2]
[398549738,1765824249028,-10000.01,0.0001045,2]
[398549739,1765824249148,-10000.01,0.0001045,2]
[398549740,1765824249382,-10000.01,0.0001045,2]
[398549741,1765824249515,-10000.01,0.0001045,2]
[398549742,1765824249638,-10000.01,0.0001045,2]
[398549743,1765824316438,-300.0,0.00010448,2]
[398549744,1765824316467,-300.0,0.00010448,2]
[398549745,1765824316509,-707.0,0.00010448,2]
[398549746,1765824316537,-162.20832588,0.00010449,2]
[398549747,1765824316568,-500.0,0.00010449,2]
[398549748,1765824316599,-500.0,0.00010449,2]
[398549749,1765824316630,-235.69308827,0.00010449,2]
[398549750,1765824316661,-500.0,0.00010449,2]
[398549751,1765824316691,-230.68525934,0.00010449,2]
[398549752,1765824316719,-500.0,0.00010449,2]
[398549753,1765824316748,-500.0,0.00010449,2]
[398549754,1765824316778,-500.0,0.00010449,2]
[398549755,1765824316863,-500.0,0.00010449,2]
[398549756,1765824316896,-500.0,0.00010449,2]
[398549757,1765824316926,-500.0,0.00010449,2]
[398549758,1765824316957,-500.0,0.00010449,2]
[398549759,1765824316988,-500.0,0.00010449,2]
[398549760,1765824317019,-500.76196722,0.00010449,2]
[398549761,1765824317052,-500.0,0.00010449,2]
[398549762,1765824317082,-500.0,0.00010449,2]
[398549763,1765824317113,-500.0,0.00010449,2]
[398549764,1765824317703,-129.59862024,0.0001045,2]
[398549765,1765824317718,-998.48606556,0.0001045,2]
[398549766,1765824317767,-10000.01,0.0001045,2]
[398549767,1765824317792,-10000.01,0.0001045,2]
[398549769,1765824344166,-10000.01,0.0001045,2]
[398549770,1765824350048,-10000.01,0.0001045,2]
[398549772,1765824372628,-300.0,0.00010449,2]
[398549773,1765824405620,186.03,0.0001,2]
[398549774,1765824406494,186.03,0.000102,2]
[398549775,1765824422348,300.0,0.00010449,2]
[398549776,1765824437150,-10337.32725966,0.0001045,2]
[398549777,1765824557243,-300.0,0.00010448,2]
[398549778,1765824557278,-299.0,0.00010449,2]
[398549779,1765824557308,-1200.0,0.00010449,2]
[398549780,1765824594903,196.3130334,9.775e-05,2]
[398549781,1765824601236,300.0,0.00010448,2]
[398549782,1765824602422,300.0,0.00010448,2]
[398549783,1765824602549,300.0,0.00010448,2]
[398549784,1765824603781,566.0,0.00010449,2]
[398549785,1765824604852,300.0,0.00010448,2]
[398549786,1765824610505,1200.0,0.00010448,2]
[398549787,1765824620951,1001.0,0.00010444,2]
[398549788,1765824621594,338.54265469,0.00010444,2]
[398549789,1765824622712,1015.50646599,0.00010444,2]
[398549820,1765824632499,-290.8,0.00010449,2]
[398549822,1765824632510,-546.47330194,0.00010449,2]
[398549823,1765824632522,-319.74,0.00010449,2]
[398549824,1765824632553,-48842.98669806,0.00010449,2]
[398549825,1765824632562,-500.0,0.00010449,2]
[398549826,1765824632571,-319.88662106,0.00010449,2]
[398549827,1765824632579,-398.00074638,0.00010449,2]
[398549828,1765824632588,-500.0,0.00010449,2]
[398549829,1765824632597,-500.0,0.00010449,2]
[398549830,1765824632606,-500.0,0.00010449,2]
[398549831,1765824632615,-500.0,0.00010449,2]
[398549832,1765824632624,-348.14985759,0.00010449,2]
[398549833,1765824632633,-500.0,0.00010449,2]
[398549834,1765824632642,-500.0,0.00010449,2]
[398549835,1765824632650,-500.0,0.00010449,2]
[398549836,1765824632659,-500.0,0.00010449,2]
[398549837,1765824632847,-500.0,0.00010449,2]
[398549838,1765824632918,-500.0,0.00010449,2]
[398549839,1765824632928,-500.0,0.00010449,2]
[398549840,1765824632937,-500.0,0.00010449,2]
[398549841,1765824632946,-500.0,0.00010449,2]
[398549842,1765824632955,-500.0,0.00010449,2]
[398549843,1765824632963,-500.0,0.00010449,2]
[398549844,1765824632973,-500.0,0.00010449,2]
[398549845,1765824632982,-621.73725015,0.00010449,2]
[398549846,1765824632991,-191.25660772,0.00010449,2]
[398549847,1765824633000,-500.0,0.00010449,2]
[398549848,1765824633009,-500.0,0.00010449,2]
[398549849,1765824633018,-372.11756154,0.00010449,2]
[398549850,1765824633027,-500.0,0.00010449,2]
[398549851,1765824633036,-500.0,0.00010449,2]
[398549852,1765824633044,-249.77124494,0.00010449,2]
[398549853,1765824633053,-500.0,0.00010449,2]
[398549854,1765824633062,-500.0,0.00010449,2]
[398549855,1765824633071,-500.0,0.00010449,2]
[398549856,1765824633080,-500.0,0.00010449,2]
[398549857,1765824633088,-500.0,0.00010449,2]
[398549858,1765824633097,-500.0,0.00010449,2]
[398549859,1765824633106,-500.0,0.00010449,2]
[398549860,1765824633114,-500.0,0.00010449,2]
[398549861,1765824633123,-500.0,0.00010449,2]
[398549862,1765824633132,-500.0,0.00010449,2]
[398549863,1765824633141,-303.29308163,0.00010449,2]
[398549864,1765824633150,-500.0,0.00010449,2]
[398549865,1765824633159,-500.0,0.00010449,2]
[398549866,1765824633168,-500.0,0.00010449,2]
[398549867,1765824633177,-500.0,0.00010449,2]
[398549868,1765824633186,-500.0,0.00010449,2]
[398549869,1765824633195,-500.0,0.00010449,2]
[398549870,1765824633204,-32.37193359,0.00010449,2]
[398549936,1765824639102,-467.62806641,0.00010449,2]
[398549938,1765824639114,-500.0,0.00010449,2]
[398549940,1765824639126,-500.0,0.00010449,2]
[398549943,1765824639138,-500.0,0.00010449,2]
[398549944,1765824639148,-19790.66180637,0.0001045,2]
[398549952,1765824639230,-2472.99554256,0.0001045,2]
[398549954,1765824639243,-961.71379467,0.0001045,2]
[398549956,1765824639258,-1703.45085993,0.0001045,2]
[398549958,1765824639271,-25198.3175467,0.0001045,2]
[398549961,1765824639288,-204802.47441335,0.0001045,2]
[398549966,1765824639332,-435.0,0.0001045,2]
[398549968,1765824639346,-1442.73549134,0.0001045,2]
[398549971,1765824639370,-290.17468401,0.0001045,2]
[398549973,1765824639383,-2840.196,0.0001045,2]
[398550119,1765824641326,-733.73686278,0.0001045,2]
[398550120,1765824641338,-1982.9852,0.0001045,2]
[398550121,1765824641383,-3835.82232218,0.0001045,2]
[398550122,1765824641395,-528.89051107,0.0001045,2]
[398550123,1765824641407,-890.80323467,0.0001045,2]
[398550136,1765824643600,-1959.42071875,0.0001045,2]
[398550242,1765824646675,-2357.72674961,0.0001045,2]
[398550245,1765824646687,-778.77913156,0.0001045,2]
[398550263,1765824646765,-1705.28,0.0001045,2]
[398550634,1765824662977,300.0,0.00010449,2]
[398550635,1765824668821,181.8733052,9.972e-05,2]
[398550636,1765824669236,402.77454072,0.00010448,2]
[398550637,1765824669263,97.22545928,0.00010448,2]
[398550638,1765824669317,182.0551785,0.00010416,2]
[398550639,1765824669582,500.0,0.00010448,2]
[398550640,1765824670271,152.45750684,0.00010448,2]
[398550641,1765824672453,291.30413891,0.00010448,2]
[398550642,1765824673411,644.8103424,0.00010448,2]
[398550643,1765824673446,205.34998418,0.00010448,2]
[398550645,1765824691174,500.0,0.00010448,2]
[398550646,1765824700115,156.53991443,9.972e-05,2]
[398550647,1765824704574,186.02,0.0001,2]
[398550648,1765824776615,150.0,7.28e-05,2]
[398550649,1765824777033,150.0,7.942e-05,2]
[398550650,1765824925874,-278.35283989,0.00010407,2]
[398550651,1765824925903,-156.69645435,0.00010416,2]
[398550652,1765824925931,-300.0,0.00010448,2]
[398550653,1765824925960,-300.0,0.00010448,2]
[398550654,1765824925988,-300.0,0.00010448,2]
[398550655,1765824926017,-300.0,0.00010448,2]
[398550656,1765824926045,-1200.0,0.00010448,2]
[398550657,1765824926075,-484.0,0.00010449,2]
[398550658,1765824926104,-500.0,0.00010449,2]
[398550659,1765824926134,-500.0,0.00010449,2]
[398550660,1765824926163,-500.0,0.00010449,2]
[398550661,1765824944716,-114.64880141,0.00010449,2]
[398550662,1765824944793,-10000.01,0.00010449,2]
[398550663,1765824944831,-10000.01,0.00010449,2]
[398550664,1765824951077,-10000.01,0.00010449,2]
[398550665,1765824957705,-2133.77477365,0.00010449,2]
[398550666,1765824957735,-500.0,0.00010449,2]
[398550667,1765824957765,-500.0,0.00010449,2]
[398550668,1765824957794,-500.0,0.00010449,2]
[398550669,1765824957823,-500.0,0.00010449,2]
[398550670,1765824957854,-500.0,0.00010449,2]
[398550671,1765824957883,-232.4604527,0.00010449,2]
[398550672,1765824958057,-267.5395473,0.00010449,2]
[398550673,1765824958086,-500.0,0.00010449,2]
[398550674,1765824958370,-500.0,0.00010449,2]
[398550675,1765824958404,-617.50560639,0.00010449,2]
[398550676,1765824958434,-500.0,0.00010449,2]
[398550677,1765824958463,-500.0,0.00010449,2]
[398550678,1765824958494,-379.91215361,0.00010449,2]
[398550679,1765824958521,-386.01094922,0.00010449,2]
[398550680,1765824958549,-499.99999999,0.00010449,2]
[398550681,1765824958577,-500.0,0.00010449,2]
[398550682,1765824958605,-255.43529928,0.00010449,2]
[398550683,1765824959544,-12.10424802,0.00010449,2]
[398550684,1765824959566,-175.0986404,0.00010449,2]
[398550685,1765824959575,-267.5395473,0.00010449,2]
[398550686,1765824969174,150.0,7.368e-05,2]
[398550687,1765824969753,150.0,8.038e-05,2]
[398550688,1765824969996,150.0,8.707e-05,2]
[398550689,1765824970369,150.0,9.377e-05,2]
[398550690,1765824970767,167.58,0.00010047,2]
[398550691,1765825004846,162.43,0.0001,2]
[398550692,1765825041801,150.0,7.271e-05,2]
[398550693,1765825042193,150.0,7.932e-05,2]
[398550694,1765825043209,150.0,8.593e-05,2]
[398550695,1765825043501,150.0,9.254e-05,2]
[398550696,1765825043670,150.0,9.915e-05,2]
[398550697,1765825113028,150.0,7.346e-05,2]
[398550698,1765825113464,150.0,8.014e-05,2]
[398550699,1765825113889,150.0,8.682e-05,2]
[398550700,1765825114284,150.0,9.349e-05,2]
[398550701,1765825114680,150.0,0.00010017,2]
[398550702,1765825184054,150.0,7.24e-05,2]
[398550703,1765825184296,150.0,7.898e-05,2]
[398550704,1765825184687,150.0,8.556e-05,2]
[398550705,1765825185095,150.0,9.214e-05,2]
[398550706,1765825185510,150.0,9.873e-05,2]
[398550707,1765825242583,-162.43,0.000102,2]
[398550708,1765825242609,-500.0,0.000102,2]
[398550709,1765825242635,-563.0,0.000102,2]
[398550710,1765825253134,150.0,7.319e-05,2]
[398550711,1765825253631,150.0,7.984e-05,2]
[398550712,1765825254510,150.0,8.65e-05,2]
[398550713,1765825254657,150.0,9.315e-05,2]
[398550714,1765825254780,150.0,9.981e-05,2]
[398550715,1765825258416,-272.78578309,0.00010305,2]
[398550716,1765825258656,-5588.64265073,0.0001035,2]
[398550717,1765825267317,-300.0,0.00010349,2]
[398550718,1765825267351,-9400.01,0.0001035,2]
[398550719,1765825273777,-10000.01,0.0001035,2]
[398550720,1765825280075,-10000.01,0.0001035,2]
[398550721,1765825280248,-10000.01,0.0001035,2]
[398550722,1765825331744,-150.0,8.593e-05,2]
[398550723,1765825331775,-42.1132523,9.374e-05,2]
[398550724,1765825362347,-107.8867477,9.374e-05,2]
[398550725,1765825373448,-337.48832425,9.647e-05,2]
[398550726,1765825376788,-261.35192524,9.647e-05,2]
[398550727,1765825376812,-9.81315426,9.647e-05,2]
[398550728,1765825378504,-291.67934636,9.647e-05,2]
[398550729,1765825378531,-598.84024949,9.823e-05,2]
[398550730,1765825378562,-301.49250062,9.823e-05,2]
[398550731,1765825378597,-598.84024949,9.998e-05,2]
[398550732,1765825378631,-301.49250062,9.998e-05,2]
[398550733,1765825378661,-162.42,0.0001,2]
[398550734,1765825378690,-203.593,0.00010143,2]
[398550735,1765825378721,-150.0,0.00010155,2]
[398550736,1765825378749,-598.84024949,0.00010173,2]
[398550737,1765825378777,-301.49250062,0.00010173,2]
[398550738,1765825378806,-162.42,0.000102,2]
[398550739,1765825378834,-186.13123096,0.00010311,2]
[398550740,1765825378863,-300.0,0.00010349,2]
[398550741,1765825378890,-599.43908974,0.00010349,2]
[398550742,1765825378919,-184.8541721,0.00010349,2]
[398550743,1765825379077,-116.93982102,0.00010349,2]
[398550744,1765825379107,-362.35272935,0.00010349,2]
[398550745,1765825379142,-554.96002626,0.00010349,2]
[398550746,1765825379172,-500.0,0.00010349,2]
[398550747,1765825379201,-637.48902331,0.00010349,2]
[398550748,1765825379231,-500.0,0.00010349,2]
[398550749,1765825379260,-513.72376405,0.00010349,2]
[398550750,1765825379716,-116.93982102,0.0001035,2]
[398550751,1765825379730,-3629.07927202,0.0001035,2]
[398550752,1765825379759,-10000.01,0.0001035,2]
[398550753,1765825379782,-10000.01,0.0001035,2]
[398550754,1765825387917,-300.0,0.00010349,2]
[398550755,1765825387951,-1200.0,0.00010349,2]
[398550756,1765825388015,-7000.01,0.0001035,2]
[398550758,1765825398986,150.0,7.234e-05,2]
[398550759,1765825399409,157.93,7.891e-05,2]
[398550760,1765825421698,-236.89,8.549e-05,2]
[398550761,1765825421722,-272.13197726,8.878e-05,2]
[398550762,1765825421750,-58.10802274,9.207e-05,2]
[398550763,1765825424480,-193.54,9.207e-05,2]
[398550764,1765825433422,-164.3,8.997e-05,2]
[398550765,1765825435137,-169.03836886,8.997e-05,2]
[398550766,1765825439104,-241.22817654,8.997e-05,2]
[398550767,1765825441560,-331.71442508,8.997e-05,2]
[398550768,1765825445601,-125.23813642,8.997e-05,2]
[398550769,1765825445629,-112.50995495,8.997e-05,2]
[398550770,1765825448658,-144.39969113,8.997e-05,2]
[398550771,1765825448680,-114.89039763,9.101e-05,2]
[398550772,1765825450498,-662.79750937,9.101e-05,2]
[398550773,1765825451769,-253.8311999,9.101e-05,2]
[398550774,1765825451798,-1031.5191069,9.204e-05,2]
[398550775,1765825451828,-64.20197726,9.207e-05,2]
[398550776,1765825455011,-154.96244023,9.23e-05,2]
[398550777,1765825478688,150.0,7.221e-05,2]
[398550778,1765825479089,189.29,7.877e-05,2]
[398550779,1765825479487,283.94,8.534e-05,2]
[398550780,1765825480178,378.58,9.19e-05,2]
[398550781,1765825490291,-101.94720585,9.23e-05,2]
[398550782,1765825490314,-203.92087696,9.307e-05,2]
[398550783,1765825493201,-155.87,9.307e-05,2]
[398550784,1765825494693,-218.29978092,9.307e-05,2]
[398550785,1765825496874,-158.30179163,9.307e-05,2]
[398550786,1765825499954,-196.26551965,9.307e-05,2]
[398550787,1765825501498,-98.86113774,9.307e-05,2]
[398550788,1765825501519,-101.85428168,9.367e-05,2]
[398550789,1765825503737,-151.82138089,9.367e-05,2]
[398550790,1765825509080,-976.26321711,9.367e-05,2]
[398550791,1765825509194,-842.41118773,9.367e-05,2]
[398550792,1765825513807,-471.20144828,9.41e-05,2]
[398550793,1765825515843,8315.18762454,8.765e-05,2]
[398550794,1765825515866,4579.44241146,8.765e-05,2]
[398550795,1765825515961,-165.87242082,9.41e-05,2]
[398550796,1765825517864,-302.68,9.41e-05,2]
[398550797,1765825522130,-91.7652378,9.41e-05,2]
[398550798,1765825522153,-210.72984795,9.462e-05,2]
[398550799,1765825524951,-46.17979813,9.462e-05,2]
[398550800,1765825524974,-106.09020187,9.471e-05,2]
[398550801,1765825530739,-155.67356659,9.471e-05,2]
[398550802,1765825532455,-153.5,9.471e-05,2]
[398550803,1765825533975,-159.41,9.471e-05,2]
[398550805,1765825537195,-437.84934574,9.471e-05,2]
[398550806,1765825539556,-152.03,9.471e-05,2]